{"text_format":"3","workbook":"xlsx","n_sheets":2,"sheets":["Протокол ШЭ ВОШ по предмету","Лист2"],"not_rendered":{"external_links":1,"defined_names":2},"read":"whole","date_system":"1900"}

{"sheet":"Протокол ШЭ ВОШ по предмету","index":0,"n_rows":101,"n_cols":23,"rows_kept":101}
["№","Фамилия","Имя","Отчество","Дата рождения","Пол","Участник с ОВЗ (да/нет)","Класс обучения","Класс участия","Балл","Максимальный балл","Статус","Призёр муниципального этапа прошлого года","ФИО учителя","Место работы учителя"]
[1,"Чернышов","Иван","Михайлович","        09.062008","М","       нет",7,7,136,149,"победитель","нет",{"$f":"$N$3","v":"Резюкин Олег Виленович"},"Муниципальное бюджетное общеобразовательное учреждение \"Школа №29\" г.Нижнекамск Республики Татарстан"]
[2,"Воронина","Вероника","Евгеньевна","2007-05-06","        Ж","        нет",7,7,74,149,"        участник","                нет","Резюкин Олег Виленович","Муниципальное бюджетное общеобразовательное учреждение \"Школа №29\" г.Нижнекамск Республики Татарстан",{"$nulls":6},"г.Нижнекамск","Республики Татарстан"]
[3,"Рахманов","Рамзан","Рустемович","2008-04-13","        М","         нет",7,7,75,149,"        Участник","                нет","Резюкин Олег Виленович","Муниципальное бюджетное общеобразовательное учреждение \"Школа №29\" г.Нижнекамск Республики Татарстан",{"$nulls":6},"г.Нижнекамск","Республики Татарстан"]
[4,"Сахабиев","Данил","Ниязович","2008-11-15","        М","         нет",7,7,65,149,"участгик","                нет","Резюкин Олег Виленович","Муниципальное бюджетное общеобразовательное учреждение \"Школа №29\" г.Нижнекамск Республики Татарстан",{"$nulls":6},"г.Нижнекамск","Республики Татарстан"]
[5,"Булатов","Руслан","Наилевич","         12.12.2008","         М","        нет",7,7,90,149,"        учасник","                нет","Резюкин Олег Виленович","Муниципальное бюджетное общеобразовательное учреждение \"Школа №29\" г.Нижнекамск Республики Татарстан",{"$nulls":6},"г.Нижнекамск","Республики Татарстан"]
[6,{"$f":"'[1]Победители и Призеры'!D11","v":"Котов"},{"$f":"'[1]Победители и Призеры'!E11","v":"Никита"},{"$f":"'[1]Победители и Призеры'!F11","v":"Андреевич"},"2007-08-23","        М","         нет",7,7,71,149,"участгик","                нет","Резюкин Олег Виленович","Муниципальное бюджетное общеобразовательное учреждение \"Школа №29\" г.Нижнекамск Республики Татарстан",{"$nulls":6},"г.Нижнекамск","Республики Татарстан"]
[7,"Авдоян","Милена","Ромиковна","       18.02 2008","       Ж","         нет",7,7,100,149,"        учасник","               нет","Резюкин Олег Виленович","Муниципальное бюджетное общеобразовательное учреждение \"Школа №29\" г.Нижнекамск Республики Татарстан",{"$nulls":6},"г.Нижнекамск","Республики Татарстан"]
[8,{"$f":"'[1]Победители и Призеры'!D12","v":"Якимов"},{"$f":"'[1]Победители и Призеры'!E12","v":"Илья"},{"$f":"'[1]Победители и Призеры'!F12","v":"Анатольевич"},"2008-04-15","        М","         нет",7,7,110,149,"        участник","                нет","Резюкин Олег Виленович","Муниципальное бюджетное общеобразовательное учреждение \"Школа №29\" г.Нижнекамск Республики Татарстан",{"$nulls":6},"г.Нижнекамск","Республики Татарстан"]
[9,"Каримова","Ангелина","Руслановна","         14.10.2008","        Ж","         нет",7,7,100,149,"         учасник","                нет","Резюкин Олег Виленович","Муниципальное бюджетное общеобразовательное учреждение \"Школа №29\" г.Нижнекамск Республики Татарстан",{"$nulls":6},"г.Нижнекамск","Республики Татарстан"]
[10,{"$f":"'[1]Победители и Призеры'!D13","v":"Рахимов"},{"$f":"'[1]Победители и Призеры'!E13","v":"Артур"},{"$f":"'[1]Победители и Призеры'!F13","v":"Алмазович"},"2008-09-12","        М","         нет",7,7,120,149,"        участник","                нет","Резюкин Олег Виленович","Муниципальное бюджетное общеобразовательное учреждение \"Школа №29\" г.Нижнекамск Республики Татарстан",{"$nulls":6},"г.Нижнекамск","Республики Татарстан"]
[11,"Арутюнян ","Давид","Аликович","         01.07.2007","        М","        нет",8,8,100,149,"          учасник","                нет","Резюкин Олег Виленович","Муниципальное бюджетное общеобразовательное учреждение \"Школа №29\" г.Нижнекамск Республики Татарстан",{"$nulls":6},"г.Нижнекамск","Республики Татарстан"]
[12,"Мазитова","Ксения","Дмитриевна","2007-04-23","        Ж","        нет",8,8,90,149,"          учасник","                нет","Резюкин Олег Виленович","Муниципальное бюджетное общеобразовательное учреждение \"Школа №29\" г.Нижнекамск Республики Татарстан",{"$nulls":6},"г.Нижнекамск","Республики Татарстан"]
[13,"Авдоян","Максим","Ромикович","        18.08.2007","        М","        нет",8,8,102,149,"          учасник","                нет","Резюкин Олег Виленович","Муниципальное бюджетное общеобразовательное учреждение \"Школа №29\" г.Нижнекамск Республики Татарстан",{"$nulls":6},"г.Нижнекамск","Республики Татарстан"]
[14,"Морозов","Данил","Вячеславович","         05.07.2007","        М","        нет",8,8,111,149,"          учасник","                нет","Резюкин Олег Виленович","Муниципальное бюджетное общеобразовательное учреждение \"Школа №29\" г.Нижнекамск Республики Татарстан",{"$nulls":6},"г.Нижнекамск","Республики Татарстан"]
[15,"Ильин","Илья","Артемович","        19.02.2007","        М","        нет",8,8,111,149,"          учасник","                нет","Резюкин Олег Виленович","Муниципальное бюджетное общеобразовательное учреждение \"Школа №29\" г.Нижнекамск Республики Татарстан",{"$nulls":6},"г.Нижнекамск","Республики Татарстан"]
[16,"Попова","Арина","Евгеньевна","2006-12-04","       Ж","        нет",8,8,110,149,"          учасник","                нет","Резюкин Олег Виленович","Муниципальное бюджетное общеобразовательное учреждение \"Школа №29\" г.Нижнекамск Республики Татарстан",{"$nulls":6},"г.Нижнекамск","Республики Татарстан"]
[17,"Шагабиев","Данил","Эдуардович","        23.07.2007","       М","        нет",8,8,92,149,"          учасник","                нет","Резюкин Олег Виленович","Муниципальное бюджетное общеобразовательное учреждение \"Школа №29\" г.Нижнекамск Республики Татарстан",{"$nulls":6},"г.Нижнекамск","Республики Татарстан"]
[18,"Шушков","Артем","Максимович","        01.012007.","м","        нет",8,8,98,149,"          учасник","                нет","Резюкин Олег Виленович","Муниципальное бюджетное общеобразовательное учреждение \"Школа №29\" г.Нижнекамск Республики Татарстан",{"$nulls":6},"г.Нижнекамск","Республики Татарстан"]
[19,{"$f":"'[1]Победители и Призеры'!D14","v":"Гулов "},{"$f":"'[1]Победители и Призеры'!E14","v":"Виктор"},{"$f":"'[1]Победители и Призеры'!F14","v":"Игоревич"},"2007-09-15","        М","         нет",8,8,133,149,"          учасник","                нет","Резюкин Олег Виленович","Муниципальное бюджетное общеобразовательное учреждение \"Школа №29\" г.Нижнекамск Республики Татарстан",{"$nulls":6},"г.Нижнекамск","Республики Татарстан"]
[20,{"$f":"'[1]Победители и Призеры'!D15","v":"Сунгатов"},{"$f":"'[1]Победители и Призеры'!E15","v":"Рафаэль"},{"$f":"'[1]Победители и Призеры'!F15","v":"Альбертович"},"2007-02-26","        М","         нет",8,8,139,149,"победитель","                нет","Резюкин Олег Виленович","Муниципальное бюджетное общеобразовательное учреждение \"Школа №29\" г.Нижнекамск Республики Татарстан",{"$nulls":6},"г.Нижнекамск","Республики Татарстан"]
[21,{"$f":"'[1]Победители и Призеры'!D16","v":"Прытков "},{"$f":"'[1]Победители и Призеры'!E16","v":"Роман"},{"$f":"'[1]Победители и Призеры'!F16","v":"Павлович"},"2006-02-27","        М","         нет",9,9,75,150,"        участник","                нет","Резюкин Олег Виленович","Муниципальное бюджетное общеобразовательное учреждение \"Школа №29\" г.Нижнекамск Республики Татарстан",{"$nulls":6},"г.Нижнекамск","Республики Татарстан"]
[22,{"$f":"'[1]Победители и Призеры'!D17","v":"Панфилов"},{"$f":"'[1]Победители и Призеры'!E17","v":"Никита"},{"$f":"'[1]Победители и Призеры'!F17","v":"Александрович"},"          28.02.206","        М","         нет",9,9,122,150,"        участник","                нет","Резюкин Олег Виленович","Муниципальное бюджетное общеобразовательное учреждение \"Школа №29\" г.Нижнекамск Республики Татарстан",{"$nulls":6},"г.Нижнекамск","Республики Татарстан"]
[23,{"$f":"'[1]Победители и Призеры'!D18","v":"Тугуш "},{"$f":"'[1]Победители и Призеры'!E18","v":"Ильшат"},"Ришатович","        29.02.2006","        М","         нет",9,9,124,150,"        участник","                нет","Резюкин Олег Виленович","Муниципальное бюджетное общеобразовательное учреждение \"Школа №29\" г.Нижнекамск Республики Татарстан",{"$nulls":6},"г.Нижнекамск","Республики Татарстан"]
[24,"Микушева","Ирина","Олеговна","2006-07-11","        Ж","         НЕТ",9,9,59,150,"         учасник","                 нет","Резюкин Олег Виленович","Муниципальное бюджетное общеобразовательное учреждение \"Школа №29\" г.Нижнекамск Республики Татарстан",{"$nulls":6},"г.Нижнекамск","Республики Татарстан"]
[25,{"$f":"'[1]Победители и Призеры'!D19","v":"Хафизов"},{"$f":"'[1]Победители и Призеры'!E19","v":"Рамис"},{"$f":"'[1]Победители и Призеры'!F19","v":"Раилевич"},"2006-03-17","        М","         нет",9,9,119,150,"        участник","                нет","Резюкин Олег Виленович","Муниципальное бюджетное общеобразовательное учреждение \"Школа №29\" г.Нижнекамск Республики Татарстан",{"$nulls":6},"г.Нижнекамск","Республики Татарстан"]
[26,"Буранкова","Айзиля","Павловна","2005-07-15","        Ж","         НЕТ",9,9,65,150,"участгик","                нет","Резюкин Олег Виленович","Муниципальное бюджетное общеобразовательное учреждение \"Школа №29\" г.Нижнекамск Республики Татарстан"]
[27,{"$f":"'[1]Победители и Призеры'!D20","v":"Минабутдинов"},{"$f":"'[1]Победители и Призеры'!E20","v":"Ислам"},{"$f":"'[1]Победители и Призеры'!F20","v":"Ильясович"},"2006-03-02","        М","         нет",9,9,141,150,"        Победитель","                нет","Резюкин Олег Виленович","Муниципальное бюджетное общеобразовательное учреждение \"Школа №29\" г.Нижнекамск Республики Татарстан",{"$nulls":6},"г.Нижнекамск","Республики Татарстан"]
[28,"Гильманов","Тимур","Рестемович","2006-03-03","        М","         нет",9,9,50,150,"участгик","                нет","Резюкин Олег Виленович","Муниципальное бюджетное общеобразовательное учреждение \"Школа №29\" г.Нижнекамск Республики Татарстан",{"$nulls":6},"г.Нижнекамск","Республики Татарстан"]
[29,"Туктамышев","Амир","Альбертович","2006-04-07","        М","         нет",9,9,78,150,"участгик","                нет","Резюкин Олег Виленович","Муниципальное бюджетное общеобразовательное учреждение \"Школа №29\" г.Нижнекамск Республики Татарстан",{"$nulls":6},"г.Нижнекамск","Республики Татарстан"]
[30,"Груздев","Захар","Максимович","2006-03-04","        М","         нет",9,9,55,150,"        участник","                нет","Резюкин Олег Виленович","Муниципальное бюджетное общеобразовательное учреждение \"Школа №29\" г.Нижнекамск Республики Татарстан",{"$nulls":6},"г.Нижнекамск","Республики Татарстан"]
[31,"Есина","Татьяна","Ивановна","2006-07-11","        Ж","        нет",10,10,100,150,"призер","                нет","Резюкин Олег Виленович","Муниципальное бюджетное общеобразовательное учреждение \"Школа №29\" г.Нижнекамск Республики Татарстан",{"$nulls":6},"г.Нижнекамск","Республики Татарстан"]
[32,"Кирилов","Илья","Владиславович","2005-06-03","        М","        нет",10,10,75,150,"        участник","                нет","Резюкин Олег Виленович","Муниципальное бюджетное общеобразовательное учреждение \"Школа №29\" г.Нижнекамск Республики Татарстан",{"$nulls":6},"г.Нижнекамск","Республики Татарстан"]
[33,"Коротаева","Анастасия","Вячеславовна","2005-09-17","        Ж","        нет",10,10,59,150,"        участник","                нет","Резюкин Олег Виленович","Муниципальное бюджетное общеобразовательное учреждение \"Школа №29\" г.Нижнекамск Республики Татарстан",{"$nulls":6},"г.Нижнекамск","Республики Татарстан"]
[34,"Косова","Ксения","Эдуардовна","2005-04-04","        Ж","        нет",10,10,65,150,"        участник","                нет","Резюкин Олег Виленович","Муниципальное бюджетное общеобразовательное учреждение \"Школа №29\" г.Нижнекамск Республики Татарстан",{"$nulls":6},"г.Нижнекамск","Республики Татарстан"]
[35,"Ефремова","Мария","Сергеевна","        11.01 .2005","        Ж","        нет",10,10,69,150,"        участник","                нет","Резюкин Олег Виленович","Муниципальное бюджетное общеобразовательное учреждение \"Школа №29\" г.Нижнекамск Республики Татарстан",{"$nulls":6},"г.Нижнекамск","Республики Татарстан"]
[36,"Мадюкова","Полина","Эдуардовна","2005-05-16","        Ж","        нет",10,10,75,150,"        участник","                нет","Резюкин Олег Виленович","Муниципальное бюджетное общеобразовательное учреждение \"Школа №29\" г.Нижнекамск Республики Татарстан",{"$nulls":6},"г.Нижнекамск","Республики Татарстан"]
[37,"Минеев","Николай","Александрович","2005-12-12","        М","        нет",10,10,64,150,"        участник","                нет","Резюкин Олег Виленович","Муниципальное бюджетное общеобразовательное учреждение \"Школа №29\" г.Нижнекамск Республики Татарстан",{"$nulls":6},"г.Нижнекамск","Республики Татарстан"]
[38,"Мухаметшина","Дарья","Дмитриевна","2005-04-05","        Ж","        нет",10,10,70,150,"        участник","                нет","Резюкин Олег Виленович","Муниципальное бюджетное общеобразовательное учреждение \"Школа №29\" г.Нижнекамск Республики Татарстан",{"$nulls":6},"г.Нижнекамск","Республики Татарстан"]
[39,"Никифорова","Диана","Дмитриевна","2005-05-01","        Ж","        нет",10,10,74,150,"        участник","                нет","Резюкин Олег Виленович","Муниципальное бюджетное общеобразовательное учреждение \"Школа №29\" г.Нижнекамск Республики Татарстан",{"$nulls":6},"г.Нижнекамск","Республики Татарстан"]
[40,"Перескопова","Анастасия","Константиновна","2007-09-12","         Ж","        нет",10,10,69,150,"        участник","                нет","Резюкин Олег Виленович","Муниципальное бюджетное общеобразовательное учреждение \"Школа №29\" г.Нижнекамск Республики Татарстан",{"$nulls":6},"г.Нижнекамск","Республики Татарстан"]
[41,"Каранаева","Полина","Евгеньевна","2005-11-11","        Ж","         нет",10,10,75,150,"участгик","                нет","Резюкин Олег Виленович","Муниципальное бюджетное общеобразовательное учреждение \"Школа №29\" г.Нижнекамск Республики Татарстан",{"$nulls":6},"г.Нижнекамск","Республики Татарстан"]
[42,"Агафонова ","Кира","Евгеньевна","2005-12-13","        Ж","         нет",10,10,75,150,"участгик","                нет","Резюкин Олег Виленович","Муниципальное бюджетное общеобразовательное учреждение \"Школа №29\" г.Нижнекамск Республики Татарстан",{"$nulls":6},"г.Нижнекамск","Республики Татарстан"]
[43,"Латыпов","Мирсаит","Рамилевич","2005-03-05","        М","         нет",10,10,75,150,"        участник","                нет","Резюкин Олег Виленович","Муниципальное бюджетное общеобразовательное учреждение \"Школа №29\" г.Нижнекамск Республики Татарстан",{"$nulls":6},"г.Нижнекамск","Республики Татарстан"]
[44,"Куприянов","Артур","Викторович","2005-03-06","        М","         нет",10,10,69,150,"        участник","                нет","Резюкин Олег Виленович","Муниципальное бюджетное общеобразовательное учреждение \"Школа №29\" г.Нижнекамск Республики Татарстан",{"$nulls":6},"г.Нижнекамск","Республики Татарстан"]
[45,"Романов","Алексей","Евгеньевич","2005-03-17","        М","         нет",10,10,143,150,"победитель","                нет","Резюкин Олег Виленович","Муниципальное бюджетное общеобразовательное учреждение \"Школа №29\" г.Нижнекамск Республики Татарстан",{"$nulls":6},"г.Нижнекамск","Республики Татарстан"]
[46,"Раскин","Ярослав","Леонидович","2004-03-08","        М","         нет",11,11,72,150,"участгик","                нет","Резюкин Олег Виленович","Муниципальное бюджетное общеобразовательное учреждение \"Школа №29\" г.Нижнекамск Республики Татарстан",{"$nulls":6},"г.Нижнекамск","Республики Татарстан"]
[47,"Борисова ","Валерия","Евгеньевна","2004-03-09","       Ж","         нет",11,11,67,150,"участгик","                нет","Резюкин Олег Виленович","Муниципальное бюджетное общеобразовательное учреждение \"Школа №29\" г.Нижнекамск Республики Татарстан",{"$nulls":6},"г.Нижнекамск","Республики Татарстан"]
[48,"Джадаев","Данил","Дмитриевич","2005-03-10","        М","         нет",11,11,54,150,"участгик","                нет","Резюкин Олег Виленович","Муниципальное бюджетное общеобразовательное учреждение \"Школа №29\" г.Нижнекамск Республики Татарстан",{"$nulls":6},"г.Нижнекамск","Республики Татарстан"]
[49,"Иванов ","Роман","Алексеевич","        11.01..2005","        М","         нет",11,11,67,150,"участгик","                нет","Резюкин Олег Виленович","Муниципальное бюджетное общеобразовательное учреждение \"Школа №29\" г.Нижнекамск Республики Татарстан",{"$nulls":6},"г.Нижнекамск","Республики Татарстан"]
[50,"Каримов","Ришат","Рамилевич","2004-06-12","        М","         нет",11,11,74,150,"участгик","                нет","Резюкин Олег Виленович","Муниципальное бюджетное общеобразовательное учреждение \"Школа №29\" г.Нижнекамск Республики Татарстан",{"$nulls":6},"г.Нижнекамск","Республики Татарстан"]
[51,"Кощеев","Максим","Андреевич","2004-07-25","         М","         нет",11,11,65,150,"участгик","                нет","Резюкин Олег Виленович","Муниципальное бюджетное общеобразовательное учреждение \"Школа №29\" г.Нижнекамск Республики Татарстан",{"$nulls":6},"г.Нижнекамск","Республики Татарстан"]
[52,"Майорова","Валерия","Алексеевна","2004-11-12","         Ж","         нет",11,11,76,150,"участгик","                нет","Резюкин Олег Виленович","Муниципальное бюджетное общеобразовательное учреждение \"Школа №29\" г.Нижнекамск Республики Татарстан",{"$nulls":6},"г.Нижнекамск","Республики Татарстан"]
[53,"Раскин","Ярослав","Леонидович","2004-02-04","         М","         нет",11,11,73,150,"участгик","                нет","Резюкин Олег Виленович","Муниципальное бюджетное общеобразовательное учреждение \"Школа №29\" г.Нижнекамск Республики Татарстан",{"$nulls":6},"г.Нижнекамск","Республики Татарстан"]
[54,"Садыков","Тимур","Ильназович","2004-07-07","        М","         нет",11,11,70,150,"участгик","                нет","Резюкин Олег Виленович","Муниципальное бюджетное общеобразовательное учреждение \"Школа №29\" г.Нижнекамск Республики Татарстан",{"$nulls":6},"г.Нижнекамск","Республики Татарстан"]
[55,"Файзулин","Вячеслав","Сергеевич","2004-12-12","        М","         нет",11,11,139,150,"победитель","                нет","Резюкин Олег Виленович","Муниципальное бюджетное общеобразовательное учреждение \"Школа №29\" г.Нижнекамск Республики Татарстан",{"$nulls":6},"г.Нижнекамск","Республики Татарстан"]
[56,"Марданов","Карим","Айдарович","2012-06-14","М","нет",3,3,10,50,"участник","нет","Гимадиева Раиля Наилевна","Муниципальное бюджетное общеобразовательное учреждение \"Школа №29\" г.Нижнекамск Республики Татарстан"]
[57,"Мухаметшина ","Карина ","Ильдаровна","2012-01-06","Ж","нет",3,3,15,50,"участник","нет","Гимадиева Раиля Наилевна","Муниципальное бюджетное общеобразовательное учреждение \"Школа №29\" г.Нижнекамск Республики Татарстан"]
[58,"Хусаенова ","Алия","Ниязовна","2012-04-05","Ж","нет",3,3,20,50,"участник","нет","Гимадиева Раиля Наилевна","Муниципальное бюджетное общеобразовательное учреждение \"Школа №29\" г.Нижнекамск Республики Татарстан"]
[59,"Кубышкина","Виктория","Михайловна","2012-01-04","ж","нет",3,3,29,50,"победитель","нет","Каримова Наталья Владимировна","Муниципальное бюджетное общеобразовательное учреждение \"Школа №29\" г.Нижнекамск Республики Татарстан"]
[60,"Максимова ","Арина","Ивановна","2012-04-02","ж","нет",3,3,17,50,"участник","нет","Каримова Наталья Владимировна","Муниципальное бюджетное общеобразовательное учреждение \"Школа №29\" г.Нижнекамск Республики Татарстан"]
[61,"Юлдашева","Амалия","Маратовна","2012-09-16","ж","нет",3,3,22,50,"участник","нет","Каримова Наталья Владимировна","Муниципальное бюджетное общеобразовательное учреждение \"Школа №29\" г.Нижнекамск Республики Татарстан"]
[62,"Салямов ","Александр","Дмитриевич","2011-12-04","м","нет",3,3,26,50,"участник","нет","Мещерякова Наталья Викторовна","Муниципальное бюджетное общеобразовательное учреждение \"Школа №29\" г.Нижнекамск Республики Татарстан"]
[63,"Емельянов","Маркел","Тимурович","2012-06-04","м","нет",3,3,26,50,"участник","нет","Мещерякова Наталья Викторовна","Муниципальное бюджетное общеобразовательное учреждение \"Школа №29\" г.Нижнекамск Республики Татарстан"]
[64,"Кузьмин","Арсений","Сергеевич","2012-04-11","м","нет",3,3,26,50,"участник","нет","Мещерякова Наталья Викторовна","Муниципальное бюджетное общеобразовательное учреждение \"Школа №29\" г.Нижнекамск Республики Татарстан"]
[65,"Жуков ","Тимур","Михалович","2012-07-16","м","нет",3,3,21,50,"участник","нет","Ломова Илиса Габдрафиковна","Муниципальное бюджетное общеобразовательное учреждение \"Школа №29\" г.Нижнекамск Республики Татарстан"]
[66,"Файзуллина ","Алиса","Сергеевна","2012-07-26","ж","нет",3,3,28,50,"призер","нет","Ломова Илиса Габдрафиковна","Муниципальное бюджетное общеобразовательное учреждение \"Школа №29\" г.Нижнекамск Республики Татарстан"]
[67,"Коновалова","Арина","Владимировна","2012-07-16","ж","нет",3,3,23,50,"участник","нет","Ломова Илиса Габдрафиковна","Муниципальное бюджетное общеобразовательное учреждение \"Школа №29\" г.Нижнекамск Республики Татарстан"]
[68,"Хазиев ","Эмиль","Алмазович","2012-02-29","м","нет",3,3,25,50,"участник","нет","Закирова Лаиса Шамильевна","Муниципальное бюджетное общеобразовательное учреждение \"Школа №29\" г.Нижнекамск Республики Татарстан"]
[69,"Халитова","Камиля","Руслановна","2012-12-09","ж","нет",3,3,21,50,"участник","нет","Закирова Лаиса Шамильевна","Муниципальное бюджетное общеобразовательное учреждение \"Школа №29\" г.Нижнекамск Республики Татарстан"]
[70,"Ковязин","Роман","Вадисович","2012-03-01","м","нет",3,3,26,50,"участник","нет","Закирова Лаиса Шамильевна","Муниципальное бюджетное общеобразовательное учреждение \"Школа №29\" г.Нижнекамск Республики Татарстан"]
[71,"Будылина","Милана","Юрьевна","2012-09-09","ж","нет",3,3,18,50,"участник","нет","Долганова Татьяна Владимировна","Муниципальное бюджетное общеобразовательное учреждение \"Школа №29\" г.Нижнекамск Республики Татарстан"]
[72,"Завгородний","Тимур","Игоревич","2012-04-08","м","нет",3,3,23,50,"участник","нет","Долганова Татьяна Владимировна","Муниципальное бюджетное общеобразовательное учреждение \"Школа №29\" г.Нижнекамск Республики Татарстан"]
[73,"Хадиев ","Айгиз","Ильдарович","2012-03-30","м","нет",3,3,27,50,"участник","нет","Долганова Татьяна Владимировна","Муниципальное бюджетное общеобразовательное учреждение \"Школа №29\" г.Нижнекамск Республики Татарстан"]
[74,"Ахметшина","Айзиля","Рафисовна","2012-04-20","ж","нет",3,3,9,50,"участник","нет","Гимадиева Раиля Наилевна","Муниципальное бюджетное общеобразовательное учреждение \"Школа №29\" г.Нижнекамск Республики Татарстан"]
[75,"Ганиуллин","Ильяс","Ильнурович","2012-07-11","м","нет",3,3,11,50,"участник","нет","Гимадиева Раиля Наилевна","Муниципальное бюджетное общеобразовательное учреждение \"Школа №29\" г.Нижнекамск Республики Татарстан"]
[76,"Хамидуллин ","Илья ","Эдуардович","2005-09-09","м","нет",10,10,69,150,"участник","нет","Резюкин Олег Виленович","Муниципальное бюджетное общеобразовательное учреждение \"Школа №29\" г.Нижнекамск Республики Татарстан"]
[77,"Арутюнян ","Артур","Аликович","2005-03-09","м","нет",10,10,71,150,"участник","нет","Резюкин Олег Виленович","Муниципальное бюджетное общеобразовательное учреждение \"Школа №29\" г.Нижнекамск Республики Татарстан"]
[78,"Бойко ","Данила ","Антонович","2005-04-20","м","нет",10,10,73,150,"участник","нет","Резюкин Олег Виленович","Муниципальное бюджетное общеобразовательное учреждение \"Школа №29\" г.Нижнекамск Республики Татарстан"]
[79,"Нуждина ","Анастасия ","Владиславовна","2004-12-17","ж","нет",10,10,70,150,"участник","нет","Резюкин Олег Виленович","Муниципальное бюджетное общеобразовательное учреждение \"Школа №29\" г.Нижнекамск Республики Татарстан"]
[80,"Галиева","Амина","Шамилевна ","2005-06-16","ж","нет",10,10,72,150,"участник","нет","Резюкин Олег Виленович","Муниципальное бюджетное общеобразовательное учреждение \"Школа №29\" г.Нижнекамск Республики Татарстан"]
[81,"Кисенко ","Злата ","Витальевна","2011-09-05","ж","нет",4,4,20,40,"Участник","нет","Юнусова Резеда Маратовна","Муниципальное бюджетное общеобразовательное учреждение \"Школа №29\" г.Нижнекамск Республики Татарстан"]
[82,"Шайдуллин ","Самат","Эдуардович","2011-02-28","м","нет",4,4,22,40,"Участник","нет","Юнусова Резеда Маратовна","Муниципальное бюджетное общеобразовательное учреждение \"Школа №29\" г.Нижнекамск Республики Татарстан"]
[83,"Ермолаев","Богдан ","Данилович","2011-06-03","м","нет",4,4,18,40,"Участник","нет","Юнусова Резеда Маратовна","Муниципальное бюджетное общеобразовательное учреждение \"Школа №29\" г.Нижнекамск Республики Татарстан"]
[84,"Кожевников ","Николай","Константинович","2011-09-03","м","нет",4,4,11,40,"Участник","нет","Юнусова Резеда Маратовна","Муниципальное бюджетное общеобразовательное учреждение \"Школа №29\" г.Нижнекамск Республики Татарстан"]
[85,"Кондратьев ","Артур","Вадимович","2011-06-28","м","нет",4,4,8,40,"Участник","нет","Крылова Елена Викторовна","Муниципальное бюджетное общеобразовательное учреждение \"Школа №29\" г.Нижнекамск Республики Татарстан"]
[86,"Долганов ","Владимир ","Андреевич","2011-11-06","м","нет",4,4,15,40,"Участник","нет","Крылова Елена Викторовна","Муниципальное бюджетное общеобразовательное учреждение \"Школа №29\" г.Нижнекамск Республики Татарстан"]
[87,"Зотин ","Дмитрий","Дмитриевич","2011-10-15","м","нет",4,4,13,40,"Участник","нет","Крылова Елена Викторовна","Муниципальное бюджетное общеобразовательное учреждение \"Школа №29\" г.Нижнекамск Республики Татарстан"]
[88,"Матвеева ","Карина","Андреевна","2010-12-25","ж","нет",4,4,22,40,"Участник","нет","Крылова Елена Викторовна","Муниципальное бюджетное общеобразовательное учреждение \"Школа №29\" г.Нижнекамск Республики Татарстан"]
[89,"Ахметова ","Аделина","Ришатовна","2011-01-26","ж","нет",4,4,10,40,"Участник","нет","Крылова Елена Викторовна","Муниципальное бюджетное общеобразовательное учреждение \"Школа №29\" г.Нижнекамск Республики Татарстан"]
[90,"Шарафуллин ","Салават","Линарович","2011-11-01","м","нет",4,4,29,40,"Участник","нет","Сивакова Марина Валерьевна","Муниципальное бюджетное общеобразовательное учреждение \"Школа №29\" г.Нижнекамск Республики Татарстан"]
[91,"Пестова ","Арина","Максимовна","2011-04-26","м","нет",4,4,28,40,"Участник","нет","Сивакова Марина Валерьевна","Муниципальное бюджетное общеобразовательное учреждение \"Школа №29\" г.Нижнекамск Республики Татарстан"]
[92,"Можаев ","Даниял ","Крнстантинович","2010-11-10","м","нет",4,4,32,40,"Победитель","нет","Сивакова Марина Валерьевна","Муниципальное бюджетное общеобразовательное учреждение \"Школа №29\" г.Нижнекамск Республики Татарстан"]
[93,"Дорошенко","Максим","Викторович","2011-02-26","м","нет",4,4,30,40,"Участник","нет","Сивакова Марина Валерьевна","Муниципальное бюджетное общеобразовательное учреждение \"Школа №29\" г.Нижнекамск Республики Татарстан"]
[94,"Гайнуллина","Алия","Алексеевна","2011-03-03","ж","нет",4,4,35,40,"Участник","нет","Галиуллина Гульзира Флеровна","Муниципальное бюджетное общеобразовательное учреждение \"Школа №29\" г.Нижнекамск Республики Татарстан"]
[95,"Махмутова","Аделя ","Ниязовна","2011-03-09","ж","да",4,4,37,40,"Участник","нет","Галиуллина Гульзира Флеровна","Муниципальное бюджетное общеобразовательное учреждение \"Школа №29\" г.Нижнекамск Республики Татарстан"]
[96,"Шарапова","Раяна","Ринатовна","2011-10-22","ж","нет",4,4,30,40,"Призёр","нет","Галиуллина Гульзира Флеровна","Муниципальное бюджетное общеобразовательное учреждение \"Школа №29\" г.Нижнекамск Республики Татарстан"]
[97,"Мухамедзянова ","Замира","Робертовна","2011-08-24","ж","нет",4,4,22,40,"Участник","нет","Галиуллина Гульзира Флеровна","Муниципальное бюджетное общеобразовательное учреждение \"Школа №29\" г.Нижнекамск Республики Татарстан"]
[98,"Знатнова ","Вероника","Вячеславовна","2011-04-21","ж","нет",4,4,9,40,"Участник","нет","Крылова Елена Викторовна","Муниципальное бюджетное общеобразовательное учреждение \"Школа №29\" г.Нижнекамск Республики Татарстан"]
[99,"Воробьев ","Иван","Николаевич","2011-11-24","м","нет",4,4,17,40,"Участник","нет","Крылова Елена Викторовна","Муниципальное бюджетное общеобразовательное учреждение \"Школа №29\" г.Нижнекамск Республики Татарстан"]
[100,"Данилова ","София","Ониковна","2011-08-18","ж","нет",4,4,21,40,"Участник","нет","Крылова Елена Викторовна","Муниципальное бюджетное общеобразовательное учреждение \"Школа №29\" г.Нижнекамск Республики Татарстан"]

{"sheet":"Лист2","index":1,"n_rows":3,"n_cols":7,"rows_kept":3}
["м",null,"Победитель",null,"да",null,"Победитель"]
["ж",null,"Призер",null,"нет",null,"Призер"]
[null,null,"Участник"]